bitfinex/quotes_BTCUSD_20251217
["timestamp","ask_amount","ask_price","bid_price","bid_amount"]
[1765993282968,0.2421971,86707.0,86687.0,1.16071]
[1765993283184,0.2421971,86707.0,86687.0,1.16232]
[1765993283185,0.001,86700.0,86687.0,1.16232]
[1765993283382,0.01153322,86706.0,86687.0,1.16232]
[1765993283781,0.23065661,86709.0,86689.0,0.48081]
[1765993284148,0.02985282,86709.0,86691.0,0.48081]
[1765993284281,0.02985282,86709.0,86689.0,0.00161]
[1765993284282,0.01832,86709.0,86694.0,0.48081]
[1765993284480,0.01832,86709.0,86689.0,0.00161]
[1765993284481,0.01832,86709.0,86697.0,0.6799]
[1765993284685,0.70836848,86710.0,86697.0,1.16071]
[1765993285024,0.0002537,86705.0,86697.0,1.16071]
[1765993285181,0.0002537,86705.0,86697.0,0.00161]
[1765993285182,3.7e-06,86705.0,86697.0,0.00161]
[1765993285609,3.7e-06,86705.0,86701.0,0.48081]
[1765993285813,3.7e-06,86705.0,86704.0,1.16071]
[1765993285968,3.7e-06,86705.0,86704.0,1.16232]
[1765993286377,0.10223043,86727.0,86705.0,1.16071]
[1765993286622,0.03465677,86730.0,86705.0,0.00161]
[1765993286910,0.01832,86736.0,86707.0,0.01153309]
[1765993287050,0.0115299,86731.0,86710.0,0.6799]
[1765993287256,0.70836848,86730.0,86714.0,0.48081]
[1765993287431,0.70836848,86730.0,86718.0,0.48081]
[1765993287630,0.70836848,86730.0,86718.0,0.6799]
[1765993287897,0.70836848,86730.0,86719.0,1.16071]
[1765993288110,0.0907,86729.0,86719.0,1.16071]
[1765993288317,0.70836848,86730.0,86719.0,1.16071]
[1765993288482,0.00076,86738.0,86719.0,0.00161]
[1765993288679,0.01152777,86747.0,86719.0,0.00161]
[1765993288882,0.01152897,86738.0,86719.0,0.00161]
[1765993289082,0.0907,86739.0,86719.0,0.00161]
[1765993289484,0.0907,86739.0,86722.0,0.6799]
[1765993289847,0.0907,86739.0,86722.0,0.00161]
[1765993290041,0.001,86738.0,86723.0,0.01844157]
[1765993290244,0.0907,86744.0,86723.0,0.02005157]
[1765993290668,0.01152724,86751.0,86724.0,0.013837]
[1765993290876,0.01152764,86748.0,86727.0,0.48081]
[1765993291101,0.70836848,86740.0,86724.0,0.00161]
[1765993291326,0.0907,86749.0,86711.0,0.48081]
[1765993291327,0.01153043,86727.0,86711.0,0.48081]
[1765993291529,0.0115307,86725.0,86711.0,0.48081]
[1765993291704,0.01153083,86724.0,86711.0,0.48081]
[1765993291907,0.00025367,86713.0,86708.0,0.6799]
[1765993292120,0.00025367,86713.0,86712.0,0.6799]
[1765993292678,0.00025367,86713.0,86712.0,1.16071]
[1765993293098,3.67e-06,86713.0,86712.0,0.00161]
[1765993293297,3.67e-06,86713.0,86712.0,0.68151]
[1765993293505,3.67e-06,86713.0,86712.0,1.16432]
[1765993294360,3.67e-06,86713.0,86712.0,0.00361]
[1765993294571,3.67e-06,86713.0,86712.0,0.002]
[1765993294813,3.67e-06,86713.0,86712.0,1.16271]
[1765993295214,3.67e-06,86713.0,86712.0,1.16432]
[1765993295853,3.67e-06,86713.0,86712.0,0.002]
[1765993296289,3.67e-06,86713.0,86706.0,0.48081]
[1765993296476,3.67e-06,86713.0,86706.0,0.6799]
[1765993296673,3.67e-06,86713.0,86712.0,0.001]
[1765993297096,3.67e-06,86713.0,86706.0,0.6799]
[1765993297302,0.01153242,86712.0,86697.0,0.48081]
[1765993297465,0.70836848,86710.0,86697.0,0.48081]
[1765993298325,3.67e-06,86713.0,86687.0,0.02110754]
[1765993298326,0.01153256,86711.0,86687.0,0.00266597]
[1765993298543,0.71990117,86710.0,86692.0,0.6799]
[1765993298749,3.67e-06,86713.0,86697.0,0.48081]
[1765993298964,3.67e-06,86713.0,86692.0,0.00161]
[1765993298965,3.67e-06,86713.0,86702.0,0.6799]
[1765993299173,3.67e-06,86713.0,86703.0,0.48081]
[1765993299375,3.67e-06,86713.0,86707.0,0.6799]
[1765993299704,0.01153269,86710.0,86702.0,0.00161]
[1765993299891,0.01153269,86710.0,86695.0,0.48081]
[1765993300096,0.01153269,86710.0,86695.0,1.16071]
[1765993300290,0.001,86710.0,86695.0,1.16071]
[1765993300499,0.70836848,86712.0,86696.0,0.01828]
[1765993300711,3.67e-06,86713.0,86697.0,1.17006]
[1765993300920,0.01153256,86711.0,86697.0,1.17006]
[1765993301126,0.24218686,86710.0,86697.0,0.69419]
[1765993301344,0.70836848,86710.0,86697.0,0.69419]
[1765993301559,3.67e-06,86713.0,86701.0,0.69419]
[1765993301802,3.67e-06,86713.0,86701.0,1.17006]
[1765993302014,3.67e-06,86713.0,86702.0,0.47587]
[1765993302357,0.23065017,86713.0,86702.0,0.47587]
[1765993302558,0.001,86710.0,86702.0,0.47587]
[1765993302759,3.67e-06,86713.0,86702.0,0.47587]
[1765993303093,0.01253596,86713.0,86702.0,0.47587]
[1765993303294,0.01253596,86713.0,86697.0,0.00161]
[1765993303295,3.67e-06,86713.0,86703.0,1.17006]
[1765993303810,3.67e-06,86713.0,86703.0,0.00161]
[1765993304010,3.67e-06,86713.0,86689.0,0.01153548]
[1765993304011,0.01153309,86707.0,86689.0,0.47587]
[1765993304218,0.2734,86712.0,86674.0,0.69419]
[1765993304219,0.01153508,86692.0,86674.0,0.69419]
[1765993304585,0.24224543,86689.0,86674.0,0.69419]
[1765993304696,0.01153588,86686.0,86674.0,0.69419]
[1765993304900,0.01153602,86685.0,86674.0,0.69419]
[1765993305104,0.01153708,86677.0,86664.0,1.17006]
[1765993305343,0.70836848,86674.0,86663.0,0.00161]
[1765993305559,0.01153721,86676.0,86659.0,0.01832]
[1765993306031,0.2422798,86677.0,86659.0,0.01832]
[1765993306233,0.01153721,86676.0,86659.0,0.01832]
[1765993306615,0.2422798,86677.0,86659.0,0.01832]
[1765993306851,0.24227617,86678.0,86659.0,0.01832]
[1765993307052,0.70836848,86670.0,86659.0,0.01832]
[1765993307276,0.70836848,86670.0,86656.0,0.47587]
[1765993307277,0.01153868,86665.0,86656.0,0.47587]
[1765993307481,1.04090535,86666.0,86643.0,0.69419]
[1765993307712,1.04090535,86666.0,86645.0,0.01832]
[1765993307713,0.01153868,86665.0,86645.0,0.01832]
[1765993308140,1.28321534,86666.0,86645.0,0.01832]
[1765993308318,1.04090535,86666.0,86646.0,0.47587]
[1765993308748,0.01153868,86665.0,86646.0,0.47587]
[1765993308945,1.0524439,86666.0,86645.0,0.01832]
[1765993308946,0.01153921,86661.0,86645.0,0.01832]
[1765993309156,0.01153921,86661.0,86625.0,0.01154401]
[1765993309157,0.01154028,86653.0,86626.0,0.69419]
[1765993309395,0.01154014,86654.0,86626.0,0.6958]
[1765993309586,0.01153961,86658.0,86627.0,0.01154374]
[1765993309805,0.06155787,86659.0,86629.0,0.69419]
[1765993310018,0.48034787,86659.0,86629.0,0.6958]
[1765993310192,0.145,86659.0,86632.0,0.69419]
[1765993310416,0.01153961,86658.0,86632.0,0.69147038]
[1765993310580,0.001,86654.0,86632.0,0.69147038]
[1765993310787,1.04090535,86660.0,86633.0,0.01154294]
[1765993310992,1.05922535,86660.0,86633.0,0.00161]
[1765993311190,0.01154041,86652.0,86634.0,0.47587]
[1765993311542,1.19019535,86650.0,86633.0,0.00161]
[1765993311711,1.04090535,86650.0,86633.0,0.00161]
[1765993311911,1.04090535,86650.0,86632.0,0.43748]
[1765993312517,1.04090535,86650.0,86632.0,1.13167]
[1765993312885,1.04090535,86650.0,86626.0,0.69419]
[1765993313723,0.15225853,86654.0,86626.0,0.69419]
[1765993313925,0.01154041,86652.0,86628.0,0.69419]
[1765993314133,0.01154094,86648.0,86622.0,0.47587]
[1765993314498,1.04090535,86650.0,86610.0,0.01154601]
[1765993314499,0.01154334,86630.0,86610.0,1.17006]
[1765993314716,0.01154334,86630.0,86598.0,0.01154761]
[1765993314717,0.01154441,86622.0,86605.0,0.01832]
[1765993314897,0.0907,86628.0,86602.0,0.47587]
[1765993315105,0.0907,86628.0,86600.0,0.69439]
[1765993315106,0.01154454,86621.0,86600.0,0.0002]
[1765993315329,1.04090535,86620.0,86600.0,0.0002]
[1765993315507,1.50378822,86620.0,86600.0,0.0002]
[1765993315647,0.23089809,86619.0,86600.0,0.0002]
[1765993315857,0.00161287,86619.0,86600.0,0.0002]
[1765993316064,0.00161287,86619.0,86600.0,0.47607]
[1765993316267,0.00161287,86619.0,86618.0,0.00127018]
[1765993317991,0.01832,86634.0,86618.0,0.00288018]
[1765993318202,0.01832,86634.0,86618.0,0.00161]
[1765993318414,0.01832,86641.0,86620.0,0.47587]
[1765993318613,0.01844157,86642.0,86625.0,0.69419]
[1765993318813,0.01844157,86642.0,86629.0,0.69419]
[1765993319076,0.01844157,86642.0,86630.0,1.17006]
[1765993319639,0.01844157,86642.0,86629.0,0.00161]
[1765993319640,0.2308407,86640.0,86629.0,0.00161]
[1765993319811,0.0907,86641.0,86629.0,0.001]
[1765993320197,0.01154254,86636.0,86618.0,0.69419]
[1765993320415,0.01154321,86631.0,86613.0,0.47587]
[1765993320628,0.01154467,86620.0,86603.0,0.47587]
[1765993320830,0.01154454,86621.0,86603.0,0.47587]
[1765993321045,0.24243575,86621.0,86603.0,0.47748]
[1765993321250,0.01154427,86623.0,86603.0,1.17167]
[1765993321443,0.24242719,86624.0,86605.0,1.17006]
[1765993321646,0.02986387,86626.0,86605.0,0.00161]
[1765993321854,0.05001839,86627.0,86606.0,1.17006]
[1765993322086,0.05001839,86627.0,86610.0,0.69419]
[1765993322293,0.05001839,86628.0,86606.0,0.00161]
[1765993322644,0.01844157,86629.0,86611.0,0.69419]
[1765993322896,0.0907,86637.0,86618.0,0.47587]
[1765993323140,0.01844157,86642.0,86624.0,0.47587]
[1765993323324,0.02998331,86642.0,86623.0,0.47587]
[1765993323573,0.01844157,86642.0,86633.0,0.00079373]
[1765993323748,0.01844157,86642.0,86625.0,1.17006]
[1765993323948,0.01844157,86642.0,86625.0,0.00161]
[1765993324154,0.02998331,86642.0,86625.0,0.00161]
[1765993324363,0.01844157,86642.0,86625.0,1.17167]
[1765993324576,0.02998331,86642.0,86625.0,1.17167]
[1765993324791,0.01154187,86641.0,86625.0,1.17167]
[1765993325007,0.02998331,86642.0,86625.0,1.17167]
[1765993325217,0.01154187,86641.0,86625.0,1.17167]
[1765993325540,0.01844157,86642.0,86625.0,0.00261]
[1765993325856,0.01844157,86642.0,86625.0,0.00161]
[1765993326130,0.01844157,86642.0,86625.0,0.00261]
[1765993326347,0.01154068,86650.0,86625.0,0.00161]
[1765993326547,0.01154054,86651.0,86626.0,1.17006]
[1765993326751,0.01844157,86655.0,86630.0,0.69419]
[1765993326988,0.05001839,86653.0,86634.0,1.17006]
[1765993327199,0.05001839,86653.0,86637.0,1.17006]
[1765993327407,0.01844157,86655.0,86637.0,1.17006]
[1765993327408,0.05001839,86654.0,86640.0,0.47587]
[1765993327580,0.01844157,86654.0,86641.0,0.69419]
[1765993328996,0.01844157,86654.0,86641.0,0.69472968]
[1765993329276,0.01844157,86654.0,86640.0,0.00161]
[1765993329478,0.24924462,86654.0,86640.0,0.00161]
[1765993329676,0.01844157,86654.0,86641.0,1.22864]
[1765993329877,0.02985948,86659.0,86640.0,0.00161]
[1765993329878,0.05001839,86658.0,86640.0,0.00161]
[1765993330080,0.01844157,86655.0,86641.0,1.22864]
[1765993330290,0.12055948,86659.0,86642.0,0.50763]
[1765993330291,0.10223948,86659.0,86642.0,0.50763]
[1765993330512,0.01153961,86658.0,86642.0,0.00161]
[1765993330753,0.01844157,86655.0,86642.0,0.00161]
[1765993331758,0.01844157,86655.0,86642.0,1.20409]
[1765993331988,0.0907,86660.0,86642.0,0.00161]
[1765993332190,0.01154014,86654.0,86642.0,0.00161]
[1765993332388,0.24235407,86651.0,86638.0,0.01832]
[1765993332646,0.24234901,86652.0,86638.0,0.01832]
[1765993332934,0.01944157,86655.0,86638.0,0.01832]
[1765993333340,0.01944157,86655.0,86630.0,0.24240988]
[1765993333641,0.001,86655.0,86639.0,0.70423]
[1765993333839,0.001,86655.0,86644.0,0.49825]
[1765993334069,0.01153948,86659.0,86644.0,0.49825]
[1765993334070,0.01153948,86659.0,86644.0,0.70423]
[1765993334288,0.001,86654.0,86644.0,0.70423]
[1765993334489,0.0907,86660.0,86651.0,1.20248]
[1765993334639,0.01153868,86665.0,86651.0,1.20248]
[1765993334964,0.06155667,86668.0,86651.0,0.70423]
[1765993335189,0.05001839,86667.0,86651.0,1.20248]
[1765993335324,0.29232688,86667.0,86651.0,1.20248]
[1765993335527,0.24230955,86666.0,86651.0,1.20248]
[1765993335898,0.00161287,86666.0,86651.0,1.20248]
[1765993336088,0.00161287,86666.0,86653.0,0.70423]
[1765993336228,2.87e-06,86666.0,86657.0,0.70423]
[1765993336429,2.87e-06,86666.0,86662.0,0.49825]
[1765993336631,2.87e-06,86666.0,86657.0,0.00161]
[1765993337216,2.87e-06,86666.0,86657.0,1.20409]
[1765993337662,2.87e-06,86666.0,86659.0,1.20248]
[1765993337861,2.87e-06,86666.0,86657.0,0.00261]
[1765993338181,2.87e-06,86666.0,86659.0,1.20248]
[1765993338415,2.87e-06,86666.0,86659.0,1.19742407]
[1765993338625,0.01153548,86689.0,86659.0,0.00161]
[1765993338831,0.01153575,86687.0,86660.0,0.72255]
[1765993338998,0.01153575,86687.0,86660.0,0.72416]
[1765993339203,0.01153535,86690.0,86660.0,0.72416]
[1765993339204,0.10223535,86690.0,86660.0,0.72416]
[1765993339360,0.01153575,86687.0,86662.0,0.70423]
[1765993339567,0.01153575,86687.0,86663.0,0.70423]
[1765993339792,0.24225296,86687.0,86663.0,0.70584]
[1765993339971,0.01153588,86686.0,86663.0,0.70584]
[1765993340170,0.01153602,86685.0,86663.0,0.70584]
[1765993340430,0.05001839,86689.0,86669.0,0.70423]
[1765993340587,0.0907,86691.0,86669.0,0.70423]
[1765993340588,0.0907,86691.0,86673.0,0.70423]
[1765993340791,0.01832,86692.0,86678.0,0.49825]
[1765993341148,0.02985429,86698.0,86673.0,0.00161]
[1765993341449,3.79e-06,86684.0,86674.0,1.20248]
[1765993341592,3.79e-06,86684.0,86677.0,0.49825]
[1765993341932,3.79e-06,86684.0,86683.0,1.20248]
[1765993343873,3.79e-06,86684.0,86683.0,0.001]
[1765993344052,3.79e-06,86684.0,86677.0,0.00161]
[1765993344454,0.01153695,86678.0,86659.0,0.49825]
[1765993344652,0.01153695,86678.0,86635.0,0.01844157]
[1765993344653,0.2423058,86668.0,86658.0,0.70528643]
[1765993344859,0.50491,86676.0,86658.0,0.00105643]
[1765993344860,0.24231221,86666.0,86658.0,0.00105643]
[1765993345060,0.230771,86666.0,86641.0,0.49825]
[1765993345278,0.01153961,86658.0,86642.0,1.2208]
[1765993345555,0.01154054,86651.0,86642.0,0.70423]
[1765993345710,0.24234792,86653.0,86642.0,0.70423]
[1765993345916,0.01154001,86655.0,86642.0,0.70584]
[1765993346093,0.2423351,86657.0,86643.0,1.20248]
[1765993346317,0.01153988,86656.0,86643.0,1.20409]
[1765993346513,0.24233751,86656.0,86643.0,1.20409]
[1765993346890,0.01153988,86656.0,86643.0,1.20409]
[1765993347110,0.01153948,86659.0,86643.0,0.00161]
[1765993347320,0.24230676,86667.0,86643.0,0.00161]
[1765993347823,0.01832,86670.0,86643.0,0.00161]
[1765993348049,0.01832,86670.0,86643.0,0.01545993]
[1765993348263,0.01832,86670.0,86643.0,0.02700154]
[1765993348454,0.23074704,86675.0,86648.0,0.01844157]
[1765993348656,0.24228729,86674.0,86649.0,0.01832]
[1765993348835,0.01153761,86673.0,86649.0,0.01993]
[1765993349036,0.01153735,86675.0,86650.0,1.20248]
[1765993349301,0.06128122,86717.0,86659.0,0.01153948]
[1765993349302,0.05001839,86680.0,86659.0,0.01153948]
[1765993349475,0.01844157,86690.0,86659.0,0.01153948]
[1765993349476,1.01153508,86692.0,86666.0,0.70423]
[1765993349685,0.01844157,86697.0,86672.0,0.70423]
[1765993349885,0.24222955,86695.0,86677.0,0.49825]
[1765993350158,0.01153548,86689.0,86680.0,1.20248]
[1765993350364,0.01153548,86689.0,86673.0,0.51657]
[1765993350566,0.24224276,86690.0,86662.0,0.01832]
[1765993350567,0.01153735,86675.0,86662.0,0.01832]
[1765993350771,0.23074506,86676.0,86662.0,0.01832]
[1765993350980,0.00039385,86663.0,86662.0,1.3115]
[1765993351196,3.85e-06,86663.0,86662.0,1.2208]
[1765993352284,0.001,86676.0,86662.0,0.01832]
[1765993352497,0.001,86676.0,86666.0,0.70423]
[1765993352735,0.001,86676.0,86657.0,0.0907]
[1765993352989,0.24228922,86674.0,86663.0,0.01832]
[1765993353245,0.01179173,86671.0,86663.0,0.01832]
[1765993353612,0.00025385,86671.0,86663.0,0.01832]
[1765993354090,0.00025385,86671.0,86663.0,0.72255]
[1765993354311,0.00186672,86671.0,86656.0,0.49825]
[1765993354540,0.01153801,86670.0,86660.0,0.01832]
[1765993354764,0.01153801,86670.0,86663.0,0.001]
[1765993354765,0.00161287,86670.0,86663.0,0.001]
[1765993355642,0.23072582,86683.0,86663.0,0.001]
[1765993355643,0.01153668,86680.0,86664.0,1.20248]
[1765993355850,0.01153681,86679.0,86665.0,1.20248]
[1765993356065,0.01153695,86678.0,86665.0,1.20248]
[1765993356200,0.01153681,86679.0,86665.0,1.20248]
[1765993356404,0.01153495,86693.0,86674.0,0.79493]
[1765993356640,0.01153495,86693.0,86679.0,1.20248]
[1765993356791,0.01153522,86691.0,86679.0,1.20248]
[1765993356996,0.24225923,86684.0,86674.0,0.00161]
[1765993357216,0.24225923,86684.0,86670.0,0.01832]
[1765993357217,0.242273,86680.0,86670.0,0.01832]
[1765993357425,0.01153681,86679.0,86665.0,0.01832]
[1765993357636,0.24228454,86675.0,86665.0,0.01832]
[1765993357888,0.01153721,86676.0,86665.0,0.01832]
[1765993358125,0.01153708,86677.0,86665.0,0.01832]
[1765993358362,0.01153681,86679.0,86665.0,0.72255]
[1765993358606,0.01153708,86677.0,86665.0,0.72255]
[1765993358832,0.24227915,86677.0,86665.0,0.72255]
[1765993359051,0.01153695,86678.0,86665.0,0.72255]
[1765993359269,0.01153681,86679.0,86665.0,0.72255]
[1765993359503,0.01153721,86676.0,86667.0,0.70423]
[1765993359941,0.01153708,86677.0,86667.0,0.70423]
[1765993360120,0.01153748,86674.0,86665.0,0.01832]
[1765993360335,0.01153708,86677.0,86665.0,0.01832]
[1765993360336,0.01153735,86675.0,86665.0,0.01832]
[1765993360531,0.01153695,86678.0,86665.0,0.01832]
[1765993360749,0.23072011,86686.0,86665.0,0.01993]
[1765993360750,0.24225599,86686.0,86665.0,0.01993]
[1765993360936,0.01153628,86683.0,86665.0,0.01993]
[1765993361114,0.01993,86690.0,86666.0,1.18415]
[1765993361456,0.05001839,86690.0,86673.0,0.49612]
[1765993361758,0.10223522,86691.0,86678.0,1.18415]
[1765993361955,0.33294024,86691.0,86678.0,1.18415]
[1765993362199,3.82e-06,86679.0,86676.0,0.01832]
[1765993362441,3.82e-06,86679.0,86678.0,0.68803]
[1765993362777,3.82e-06,86679.0,86678.0,1.18576]
[1765993362981,3.82e-06,86679.0,86655.0,0.77873]
[1765993363317,0.24228169,86676.0,86657.0,0.0907]
[1765993363537,0.01153775,86672.0,86658.0,0.68803]
[1765993363693,0.24229027,86673.0,86658.0,0.68803]
[1765993363881,0.24229027,86673.0,86655.0,0.00161]
[1765993363882,0.01153868,86665.0,86655.0,0.00161]
[1765993364082,0.24230973,86666.0,86656.0,0.01832]
[1765993364356,0.01153881,86664.0,86656.0,0.01832]
[1765993364481,0.01153828,86668.0,86656.0,0.01832]
[1765993364684,0.01153855,86666.0,86656.0,0.01832]
[1765993364895,0.01153908,86662.0,86656.0,0.01832]
[1765993365449,0.01153815,86669.0,86656.0,0.002]
[1765993365763,0.2996,86673.0,86655.0,0.00161]
[1765993365924,0.2307875,86660.0,86653.0,0.0010565]
[1765993366124,0.24232684,86660.0,86653.0,0.0010565]
[1765993366324,0.2308003,86655.0,86653.0,0.0010565]
[1765993366549,0.2308003,86655.0,86629.0,0.0907]
[1765993366550,0.24238544,86639.0,86626.0,0.68803]
[1765993366752,0.23078903,86660.0,86609.0,0.24246829]
[1765993366753,0.01154334,86630.0,86624.0,0.01832]
[1765993366938,0.01154307,86632.0,86624.0,0.01832]
[1765993367143,0.23086616,86631.0,86624.0,0.01832]
[1765993367418,0.01154294,86633.0,86624.0,0.01832]
[1765993367823,0.01154307,86632.0,86626.0,0.002]
[1765993368047,0.01154334,86630.0,86624.0,0.01832]
[1765993368243,0.01154347,86629.0,86624.0,0.01832]
[1765993368443,0.01254321,86631.0,86624.0,0.01832]
[1765993368649,0.24240656,86632.0,86616.0,0.70639]
[1765993368855,0.01154294,86633.0,86618.0,0.68803]
[1765993369063,0.001,86632.0,86619.0,0.68803]
[1765993369480,0.001,86632.0,86620.0,0.49612]
[1765993369684,0.01154214,86639.0,86625.0,0.68803]
[1765993369929,0.01154187,86641.0,86626.0,0.68803]
[1765993370133,0.01154214,86639.0,86626.0,0.68803]
[1765993370325,0.01154201,86640.0,86626.0,0.68803]
[1765993370531,0.001,86631.0,86626.0,0.68964]
[1765993370838,0.01154321,86631.0,86628.0,0.68803]
[1765993371049,0.01154321,86631.0,86610.0,0.70989446]
[1765993371050,0.01154361,86628.0,86608.0,0.58682]
[1765993371211,0.01154361,86628.0,86611.0,0.68803]
[1765993371375,0.01154387,86626.0,86612.0,1.18415]
[1765993371579,0.242405,86632.0,86613.0,0.68803]
[1765993371782,0.24241048,86630.0,86617.0,0.68803]
[1765993371988,0.01154347,86629.0,86617.0,1.18415]
[1765993372207,0.23087756,86626.0,86617.0,0.68803]
[1765993372503,0.24242459,86625.0,86610.0,0.49612]
[1765993372705,0.01154427,86623.0,86610.0,0.49612]
[1765993372954,0.01154361,86628.0,86610.0,0.49612]
[1765993373105,0.23087807,86626.0,86610.0,0.49612]
[1765993373306,0.01154387,86626.0,86610.0,1.18415]
[1765993373570,0.01154361,86628.0,86610.0,1.18415]
[1765993373761,0.01154347,86629.0,86615.0,0.68803]
[1765993374067,0.01154374,86627.0,86615.0,0.68803]
[1765993374225,0.01154347,86629.0,86615.0,0.68803]
[1765993374428,0.01154307,86632.0,86615.0,0.68803]
[1765993374649,0.01315594,86632.0,86616.0,0.68803]
[1765993374858,0.24240745,86631.0,86617.0,0.68803]
[1765993375068,0.01154321,86631.0,86618.0,0.49612]
[1765993375247,0.01154334,86630.0,86621.0,0.68803]
[1765993375444,0.01154347,86629.0,86621.0,1.16911741]
[1765993375649,0.00161287,86630.0,86621.0,1.16911741]
[1765993375859,0.01315621,86630.0,86621.0,1.16911741]
[1765993376091,0.24402336,86630.0,86621.0,1.16911741]
[1765993376246,0.01154387,86626.0,86619.0,0.01836]
[1765993376453,0.01315674,86626.0,86619.0,0.01836]
[1765993376750,0.00161287,86626.0,86619.0,0.01836]
[1765993377132,0.01154401,86625.0,86619.0,0.01836]
[1765993377356,0.00161287,86625.0,86619.0,0.01836]
[1765993377764,0.01154347,86629.0,86619.0,0.01997]
[1765993377966,0.01154374,86627.0,86619.0,0.01997]
[1765993378176,0.01154334,86630.0,86619.0,0.01997]
[1765993378441,0.01154347,86629.0,86619.0,0.01997]
[1765993378672,0.01154361,86628.0,86619.0,0.02097]
[1765993378883,0.01154361,86628.0,86619.0,0.01997]
[1765993379491,0.24241055,86630.0,86619.0,0.01997]
[1765993379719,0.01154347,86629.0,86619.0,0.01997]
[1765993380134,0.01154161,86643.0,86621.0,0.01844157]
[1765993380338,0.23083206,86644.0,86621.0,0.02005157]
[1765993380339,0.01154174,86642.0,86621.0,0.02005157]
[1765993380547,0.01154108,86647.0,86621.0,0.00161]
[1765993380760,0.24236014,86648.0,86622.0,0.01844157]
[1765993380996,0.01154094,86648.0,86624.0,0.49612]
[1765993381228,0.02998185,86653.0,86624.0,0.49612]
[1765993381229,0.01154014,86654.0,86626.0,0.0907]
[1765993381464,0.01154041,86652.0,86627.0,0.01385249]
[1765993381594,0.01154081,86649.0,86627.0,0.00161]
[1765993381998,0.23080559,86654.0,86632.0,0.68803]
[1765993382299,0.23082237,86647.0,86636.0,0.68803]
[1765993382497,0.23082237,86647.0,86633.0,0.01836]
[1765993382498,0.01154108,86647.0,86633.0,0.01836]
[1765993382800,0.01154094,86648.0,86633.0,0.01997]
[1765993383007,0.01154094,86648.0,86634.0,1.18415]
[1765993383008,0.01154108,86647.0,86634.0,1.18415]
[1765993383381,0.24236302,86647.0,86634.0,1.18415]
[1765993383583,0.23082259,86647.0,86634.0,1.18415]
[1765993383830,0.73224107,86655.0,86634.0,1.18576]
[1765993383831,0.01154068,86650.0,86634.0,1.18576]
[1765993384032,0.01154068,86650.0,86636.0,0.49612]
[1765993384233,0.01154094,86648.0,86639.0,0.68803]
[1765993384442,0.01154054,86651.0,86639.0,0.68803]
[1765993384443,0.01154068,86650.0,86639.0,0.68803]
[1765993384649,0.01154028,86653.0,86640.0,1.18415]
[1765993384849,0.23080079,86655.0,86645.0,0.68803]
[1765993385070,0.01154028,86653.0,86645.0,1.18415]
[1765993385296,0.00108853,86646.0,86642.0,0.68803]
[1765993385495,4.6e-06,86654.0,86644.0,0.68803]
[1765993385696,0.01154001,86655.0,86644.0,0.68964]
[1765993385902,0.24232337,86662.0,86644.0,0.68964]
[1765993386125,0.01153881,86664.0,86649.0,0.49612]
[1765993386338,0.23078181,86662.0,86648.0,0.68803]
[1765993386558,0.50144,86667.0,86648.0,0.68803]
[1765993386743,0.01153855,86666.0,86652.0,0.49612]
[1765993386984,0.01153868,86665.0,86654.0,0.49612]
[1765993387145,0.01153841,86667.0,86654.0,0.51609]
[1765993387366,0.01153868,86665.0,86654.0,0.51609]
[1765993387591,0.01153894,86663.0,86654.0,0.51609]
[1765993387788,0.01153921,86661.0,86654.0,0.01997]
[1765993387976,0.23078165,86662.0,86654.0,0.01997]
[1765993387977,0.24232046,86664.0,86654.0,0.01997]
[1765993388175,0.23077937,86663.0,86654.0,0.01997]
[1765993388431,0.01153881,86664.0,86654.0,0.00161]
[1765993388588,0.01153881,86664.0,86655.0,0.68803]
[1765993388786,0.01153894,86663.0,86655.0,0.68803]
[1765993388989,0.01153881,86664.0,86655.0,0.68803]
[1765993389387,0.01153894,86663.0,86655.0,0.68803]
[1765993389590,0.24231315,86665.0,86655.0,0.68803]
[1765993389829,0.01153881,86664.0,86655.0,0.68803]
[1765993389988,3.5e-06,86666.0,86658.0,0.51737]
[1765993390195,0.01153868,86665.0,86658.0,0.51737]
[1765993390390,0.24231555,86666.0,86658.0,0.51737]
[1765993390595,0.01153788,86671.0,86655.0,0.00161]
[1765993390782,0.0907,86667.0,86656.0,0.69144]
[1765993391182,0.001,86666.0,86656.0,0.48192]
[1765993391388,0.01844157,86695.0,86663.0,0.48192]
[1765993391389,0.01153602,86685.0,86663.0,0.48192]
[1765993391606,0.03467596,86689.0,86667.0,0.48192]
[1765993391816,0.01153588,86686.0,86670.0,0.69144]
[1765993392419,0.01153615,86684.0,86670.0,0.69144]
[1765993392634,0.01153588,86686.0,86671.0,0.74145839]
[1765993392808,0.01844157,86698.0,86673.0,0.05001839]
[1765993393013,0.01844157,86698.0,86675.0,0.74145839]
[1765993393014,0.24224832,86688.0,86675.0,0.74145839]
[1765993393219,0.24224251,86690.0,86675.0,0.74145839]
[1765993393220,0.01153548,86689.0,86675.0,0.74306839]
[1765993393420,0.01153562,86688.0,86675.0,0.74306839]
[1765993393618,0.0907,86688.0,86675.0,0.74306839]
[1765993393935,0.2307151,86687.0,86675.0,0.74306839]
[1765993394126,0.01153695,86678.0,86671.0,0.05001839]
[1765993394291,0.01153708,86677.0,86671.0,0.05001839]
[1765993394490,0.01153721,86676.0,86671.0,0.05001839]
[1765993394885,0.01153841,86667.0,86664.0,0.69144]
[1765993395055,0.24230761,86667.0,86660.0,0.05001839]
[1765993395256,0.01153788,86671.0,86660.0,0.05001839]
[1765993395609,0.01153788,86671.0,86659.0,0.01832]
[1765993395810,0.24229589,86671.0,86659.0,0.01832]
[1765993395966,0.01153761,86673.0,86658.0,0.05001839]
[1765993396168,0.0907,86673.0,86658.0,0.75977839]
[1765993396397,0.10223681,86679.0,86660.0,0.48192]
[1765993396592,0.10223681,86679.0,86661.0,0.69144]
[1765993396593,0.01153721,86676.0,86661.0,0.69144]
[1765993396754,0.0907,86677.0,86671.0,0.001]
[1765993396959,0.0907,86677.0,86649.0,0.01154081]
[1765993396960,0.03467199,86698.0,86679.0,0.69144]
[1765993397200,0.03467199,86698.0,86681.0,0.69144]
[1765993397480,0.03467199,86698.0,86681.0,0.69305]
[1765993397696,0.01153322,86706.0,86682.0,0.087]
[1765993397856,0.24897882,86709.0,86685.0,0.69144]
[1765993397857,0.01153375,86702.0,86685.0,0.69144]
[1765993398053,0.01153429,86698.0,86685.0,0.69144]
[1765993398254,0.01153455,86696.0,86685.0,0.69144]